bitfinex-derivatives/quotes_BTCF0:USTF0_20250121
["timestamp","ask_amount","ask_price","bid_price","bid_amount"]
[1737443022796,0.03918,102220.0,102210.0,0.0877]
[1737443023088,0.039183,102210.0,102200.0,0.04831546]
[1737443023297,0.50034276,102210.0,102200.0,0.04831546]
[1737443024800,0.03925393,102210.0,102200.0,0.04831546]
[1737443025200,0.03925393,102210.0,102200.0,0.40911546]
[1737443025412,0.03925393,102210.0,102200.0,0.04831546]
[1737443025899,0.13954276,102210.0,102200.0,0.04831546]
[1737443026305,0.50034276,102210.0,102200.0,0.04831546]
[1737443026505,0.50034276,102210.0,102200.0,4.6e-07]
[1737443026805,0.59047183,102210.0,102200.0,4.6e-07]
[1737443027112,0.59055008,102210.0,102200.0,4.6e-07]
[1737443027314,0.89057171,102210.0,102200.0,4.6e-07]
[1737443027613,0.89047183,102210.0,102200.0,4.6e-07]
[1737443028002,0.59047183,102210.0,102200.0,4.6e-07]
[1737443028199,0.6003632,102210.0,102200.0,4.6e-07]
[1737443028400,0.9003632,102210.0,102200.0,4.6e-07]
[1737443028807,0.6003632,102210.0,102180.0,0.01980667]
[1737443029113,0.039198,102180.0,102160.0,0.62839714]
[1737443029309,0.13948783,102170.0,102160.0,0.0923]
[1737443029503,0.50028783,102170.0,102160.0,0.0923]
[1737443029717,0.039207,102150.0,102130.0,0.400014]
[1737443029915,8.52e-05,102140.0,102130.0,0.494314]
[1737443030107,0.0392952,102140.0,102130.0,0.19217608]
[1737443030409,0.0392952,102140.0,102130.0,0.10961799]
[1737443031112,0.50038403,102140.0,102130.0,0.01531799]
[1737443031502,0.50038403,102140.0,102130.0,0.01731799]
[1737443032612,0.0392952,102140.0,102130.0,0.01731799]
[1737443032814,0.0392952,102140.0,102130.0,0.0418343]
[1737443033318,0.0392952,102140.0,102130.0,0.05453199]
[1737443033704,0.039207,102150.0,102130.0,0.51324161]
[1737443033911,0.039207,102150.0,102130.0,0.15244161]
[1737443034112,0.039207,102150.0,102130.0,0.51324161]
[1737443034414,0.039207,102150.0,102140.0,0.03921]
[1737443034611,0.46108883,102170.0,102140.0,0.46108883]
[1737443034612,0.00986139,102170.0,102140.0,0.46108883]
[1737443034815,0.00012262,102160.0,102150.0,0.486105]
[1737443035322,0.0392,102170.0,102150.0,0.486105]
[1737443035323,0.0392,102170.0,102150.0,0.50142299]
[1737443035611,0.0392,102170.0,102150.0,0.59932782]
[1737443036119,9.883e-05,102160.0,102150.0,0.59932782]
[1737443036319,9.883e-05,102160.0,102150.0,0.58400983]
[1737443036813,9.883e-05,102160.0,102150.0,0.54480483]
[1737443037008,9.883e-05,102160.0,102150.0,0.4469]
[1737443037207,0.50039066,102160.0,102150.0,0.0861]
[1737443037621,0.40010183,102160.0,102150.0,0.0861]
[1737443037806,0.40010183,102160.0,102150.0,0.10141855]
[1737443038011,0.03930183,102160.0,102150.0,0.46221855]
[1737443038216,0.03930183,102160.0,102150.0,0.10141855]
[1737443039122,0.50039066,102160.0,102150.0,0.01531855]
[1737443040013,0.40010183,102160.0,102150.0,0.01531855]
[1737443040221,0.03930183,102160.0,102150.0,0.01531855]
[1737443040411,0.50039066,102160.0,102150.0,0.01531855]
[1737443040611,0.03930183,102160.0,102150.0,0.01531855]
[1737443041615,0.03930183,102160.0,102150.0,0.41532455]
[1737443041815,9.883e-05,102160.0,102150.0,0.49789646]
[1737443042013,9.883e-05,102160.0,102150.0,0.59209646]
[1737443042710,0.03930183,102160.0,102150.0,0.55289046]
[1737443042919,0.03930183,102160.0,102150.0,0.0942]
[1737443043115,0.13959066,102160.0,102150.0,0.0942]
[1737443043417,0.039214,102130.0,102120.0,0.04288467]
[1737443043622,0.039214,102130.0,102120.0,0.13448467]
[1737443043824,0.039206,102150.0,102130.0,0.039213]
[1737443044023,0.039214,102130.0,102120.0,0.24769381]
[1737443044218,0.039214,102130.0,102120.0,0.14980335]
[1737443044525,0.039214,102130.0,102120.0,0.24769381]
[1737443044729,0.039214,102130.0,102120.0,0.20480914]
[1737443045410,0.039214,102130.0,102120.0,0.24402714]
[1737443046223,0.50038189,102130.0,102120.0,0.10691868]
[1737443046425,0.50038189,102130.0,102120.0,0.01531868]
[1737443046615,0.039218,102120.0,102110.0,8.855e-05]
[1737443046819,0.47824226,102120.0,102110.0,8.855e-05]
[1737443047122,0.47824226,102120.0,102100.0,0.1]
[1737443047323,0.50031083,102110.0,102100.0,0.1]
[1737443047823,0.400022,102110.0,102100.0,0.1]
[1737443048018,0.50031083,102110.0,102100.0,0.1]
[1737443048222,0.50042183,102110.0,102100.0,0.1]
[1737443048418,0.50042183,102110.0,102090.0,0.17223213]
[1737443048725,0.97031483,102100.0,102090.0,0.17223213]
[1737443048927,0.97031483,102100.0,102090.0,0.10423212]
[1737443049221,0.870026,102100.0,102090.0,0.10423212]
[1737443049419,0.400026,102100.0,102090.0,0.10423212]
[1737443050618,0.400026,102100.0,102070.0,0.88390017]
[1737443050619,0.3608,102100.0,102070.0,0.59621237]
[1737443050821,0.40003,102090.0,102070.0,0.59621237]
[1737443051021,0.03923,102090.0,102080.0,0.400033]
[1737443051215,0.03923,102090.0,102080.0,0.039233]
[1737443052020,0.3608,102100.0,102090.0,0.03923]
[1737443052021,0.039226,102100.0,102090.0,0.03923]
[1737443052323,0.000111,102110.0,102090.0,0.48763]
[1737443052324,0.039334,102110.0,102090.0,0.48763]
[1737443052630,0.039334,102110.0,102100.0,0.0909]
[1737443053426,0.000111,102110.0,102100.0,0.58887398]
[1737443053619,0.400019,102120.0,102100.0,0.64993681]
[1737443053620,0.039219,102120.0,102100.0,0.64993681]
[1737443053926,0.12637146,102130.0,102120.0,0.039218]
[1737443054323,0.12637146,102130.0,102120.0,0.128618]
[1737443054823,0.039222,102110.0,102100.0,0.490925]
[1737443055213,0.039222,102110.0,102100.0,0.58884421]
[1737443057014,0.039219,102120.0,102100.0,0.58884421]
[1737443057212,0.039219,102120.0,102100.0,0.64990804]
[1737443057418,0.4000959,102130.0,102110.0,0.40002]
[1737443057618,0.0392959,102130.0,102110.0,0.40002]
[1737443058026,0.0392959,102130.0,102110.0,0.4979536]
[1737443058627,0.12645236,102130.0,102110.0,0.4979536]
[1737443058822,0.48725236,102130.0,102120.0,0.039218]
[1737443059035,0.12645236,102130.0,102120.0,0.039218]
[1737443059716,0.12645236,102130.0,102110.0,0.400022]
[1737443059916,0.46108883,102120.0,102100.0,0.490925]
[1737443060131,0.039222,102110.0,102100.0,0.490925]
[1737443060321,0.039222,102110.0,102100.0,0.58884421]
[1737443061127,0.400019,102120.0,102100.0,0.58884421]
[1737443061518,0.4000959,102130.0,102110.0,0.40002]
[1737443061723,0.0392959,102130.0,102110.0,0.40002]
[1737443061929,8.09e-05,102130.0,102120.0,0.400018]
[1737443062129,8.09e-05,102130.0,102120.0,0.67710683]
[1737443062821,0.0635055,102140.0,102130.0,0.039214]
[1737443063021,0.0635055,102140.0,102130.0,0.400014]
[1737443063222,0.0635055,102140.0,102130.0,0.50030283]
[1737443063426,0.14454045,102150.0,102140.0,0.03921]
[1737443063624,0.14454045,102150.0,102140.0,0.40001]
[1737443064025,0.14454045,102150.0,102140.0,0.49791962]
[1737443064425,0.17427678,102160.0,102150.0,0.039206]
[1737443064625,0.17427678,102160.0,102150.0,0.50029483]
[1737443064817,0.17427678,102160.0,102150.0,0.59132638]
[1737443065022,0.17427678,102160.0,102150.0,0.58893759]
[1737443065623,0.55285277,102190.0,102160.0,0.0392]
[1737443065624,0.49435661,102190.0,102160.0,0.0392]
[1737443065824,0.49435661,102190.0,102170.0,0.3608]
[1737443066026,0.49435661,102190.0,102170.0,0.399999]
[1737443066524,0.30306778,102190.0,102180.0,0.039195]
[1737443067125,0.30306778,102190.0,102170.0,0.3608]
[1737443067321,0.30306778,102190.0,102170.0,0.399998]
[1737443067541,0.26387678,102190.0,102170.0,0.45866651]
[1737443067833,0.17427678,102190.0,102180.0,0.039195]
[1737443068032,0.21346778,102190.0,102170.0,0.49786451]
[1737443068333,0.21346778,102190.0,102170.0,0.3608]
[1737443068529,0.21346778,102190.0,102170.0,0.45866651]
[1737443068829,0.17427678,102190.0,102170.0,0.49786351]
[1737443069335,0.17427678,102190.0,102180.0,0.039195]
[1737443070836,0.60174552,102200.0,102180.0,0.039195]
[1737443071637,0.50145669,102200.0,102180.0,0.039195]
[1737443071935,0.60174552,102200.0,102180.0,0.039195]
[1737443072135,0.60174552,102200.0,102180.0,0.399995]
[1737443072440,0.60174552,102200.0,102180.0,0.039195]
[1737443072730,0.14065669,102200.0,102170.0,0.37057204]
[1737443072928,0.10146869,102200.0,102190.0,0.039191]
[1737443073132,0.10146869,102200.0,102190.0,0.399991]
[1737443073327,0.10146869,102200.0,102190.0,0.039191]
[1737443073828,0.60174752,102200.0,102170.0,0.00977204]
[1737443074029,0.46108883,102180.0,102150.0,0.23225378]
[1737443074228,0.50029183,102160.0,102150.0,0.23225378]
[1737443074723,0.50029183,102160.0,102150.0,0.01531936]
[1737443075325,0.59169183,102160.0,102150.0,0.01531936]
[1737443075532,0.68279183,102160.0,102150.0,0.01531936]
[1737443075733,0.582503,102160.0,102150.0,0.01531936]
[1737443076341,0.68279183,102160.0,102150.0,0.01531936]
[1737443076631,0.582503,102160.0,102140.0,0.59305378]
[1737443076829,0.582503,102160.0,102150.0,0.039206]
[1737443077635,0.5433,102160.0,102150.0,0.039206]
[1737443077829,0.4522,102160.0,102150.0,0.039206]
[1737443078131,0.9542,102170.0,102150.0,0.039206]
[1737443078339,0.4842,102170.0,102150.0,0.039206]
[1737443078729,0.4842,102170.0,102160.0,0.039203]
[1737443078929,0.4842,102170.0,102140.0,0.33200299]
[1737443079127,0.4842,102170.0,102140.0,0.42988865]
[1737443079332,0.4842,102170.0,102150.0,0.039204]
[1737443079534,0.4842,102170.0,102160.0,0.039203]
[1737443079733,0.445,102170.0,102160.0,0.039203]
[1737443082142,0.216596,102180.0,102160.0,0.039203]
[1737443082334,0.216596,102180.0,102170.0,0.039199]
[1737443082735,0.4459,102190.0,102160.0,0.3608]
[1737443083038,0.9334687,102200.0,102190.0,0.039191]
[1737443083039,0.5026567,102200.0,102190.0,0.039191]
[1737443083239,0.10146869,102200.0,102190.0,0.039191]
[1737443083436,0.60174452,102200.0,102180.0,0.399994]
[1737443083831,0.50145569,102200.0,102190.0,0.039191]
[1737443085931,0.039195,102180.0,102170.0,0.039198]
[1737443086335,0.399992,102190.0,102170.0,0.039198]
[1737443086534,0.47,102180.0,102170.0,0.039198]
[1737443086741,0.399992,102190.0,102180.0,0.039195]
[1737443087129,0.039198,102180.0,102160.0,0.3608]
[1737443087335,0.50028683,102180.0,102160.0,0.400002]
[1737443087537,0.483598,102180.0,102160.0,0.49786851]
[1737443087735,0.953598,102180.0,102160.0,0.49786851]
[1737443087936,1.01468883,102180.0,102160.0,0.49786851]
[1737443088243,0.039203,102160.0,102150.0,0.64186622]
[1737443088933,0.039203,102160.0,102150.0,0.23225378]
[1737443089138,0.400003,102160.0,102150.0,0.23225378]
[1737443090340,0.4,102170.0,102150.0,0.33254261]
[1737443090542,0.4,102170.0,102160.0,0.039203]
[1737443090841,0.00124001,102180.0,102170.0,0.039199]
[1737443091039,0.21346878,102190.0,102180.0,0.039195]
[1737443092040,0.21346878,102190.0,102160.0,0.6636782]
[1737443092246,0.13948483,102180.0,102160.0,0.400002]
[1737443092448,0.039196,102180.0,102160.0,0.49786372]
[1737443092636,0.123796,102180.0,102160.0,0.49786372]
[1737443092833,0.123796,102180.0,102160.0,0.59815255]
[1737443093345,0.123796,102180.0,102170.0,0.039199]
[1737443093853,0.123796,102180.0,102160.0,0.33199899]
[1737443094138,0.3608,102190.0,102160.0,0.5985573]
[1737443094345,0.399992,102190.0,102170.0,0.039198]
[1737443097733,0.54638273,102190.0,102170.0,0.039198]
[1737443098845,0.54638273,102190.0,102160.0,0.30319698]
[1737443099147,0.3608,102180.0,102170.0,0.039197]
[1737443101046,0.50719073,102190.0,102180.0,0.039195]
[1737443101247,0.14639073,102190.0,102180.0,0.399995]
[1737443101645,0.14639073,102190.0,102180.0,0.67532774]
[1737443101850,0.0311522,102190.0,102180.0,0.75792774]
[1737443102045,0.17063203,102190.0,102170.0,0.571098]
[1737443102241,0.17063203,102190.0,102160.0,0.039201]
[1737443102242,0.49224103,102190.0,102160.0,0.039201]
[1737443102448,0.039199,102170.0,102160.0,0.03430019]
[1737443102838,0.4498,102180.0,102160.0,0.23246989]
[1737443103041,0.4311442,102190.0,102170.0,0.399999]
[1737443103356,0.4311442,102190.0,102170.0,0.39510583]
[1737443103545,0.4311442,102190.0,102180.0,0.039195]
[1737443103851,0.4311442,102190.0,102170.0,0.42987586]
[1737443104051,0.4311442,102190.0,102170.0,0.40917548]
[1737443104249,0.4311442,102190.0,102180.0,0.039195]
[1737443104444,0.53143303,102190.0,102170.0,0.4690595]
[1737443104639,0.039201,102170.0,102150.0,1.23041594]
[1737443104837,0.039201,102170.0,102150.0,0.65516585]
[1737443104838,0.039203,102160.0,102150.0,0.65516585]
[1737443105040,0.039203,102160.0,102150.0,0.56403525]
[1737443105251,0.400003,102160.0,102150.0,0.56403525]
[1737443105446,0.400003,102160.0,102150.0,0.33178147]
[1737443105641,0.400003,102160.0,102150.0,0.665964]
[1737443105847,0.400003,102160.0,102150.0,0.63166151]
[1737443106150,0.3608,102160.0,102150.0,0.76875797]
[1737443106657,0.400003,102160.0,102150.0,0.76875797]
[1737443107158,0.039203,102160.0,102150.0,0.76875797]
[1737443107756,0.50029183,102160.0,102150.0,0.63166151]
[1737443108356,0.400003,102160.0,102150.0,0.63166151]
[1737443108848,0.400003,102160.0,102150.0,0.5636615]
[1737443109350,0.400003,102160.0,102150.0,0.039206]
[1737443109558,0.400003,102160.0,102140.0,0.27211446]
[1737443109846,0.400003,102160.0,102140.0,0.40431833]
[1737443110354,0.400003,102160.0,102140.0,0.36510833]
[1737443110553,0.6646,102170.0,102160.0,0.039203]
[1737443110755,0.4884,102170.0,102160.0,0.039203]
[1737443110952,0.4884,102170.0,102160.0,0.07351258]
[1737443111159,0.3608,102170.0,102160.0,0.039203]
[1737443111351,0.3608,102170.0,102160.0,0.13709825]
[1737443111952,0.399999,102170.0,102160.0,0.09789525]
[1737443112157,0.50028783,102170.0,102150.0,0.485306]
[1737443112357,0.399999,102170.0,102150.0,0.48040906]
[1737443112548,0.399999,102170.0,102160.0,0.039203]
[1737443112954,0.399999,102170.0,102150.0,0.4461]
[1737443113257,0.399999,102170.0,102150.0,0.6174996]
[1737443114049,0.039199,102170.0,102160.0,0.039203]
[1737443114254,0.57427278,102180.0,102170.0,0.039199]
[1737443114455,0.53507678,102180.0,102160.0,0.0872]
[1737443114762,0.53507678,102180.0,102160.0,0.0735085]
[1737443114958,0.17427678,102180.0,102170.0,0.039199]
[1737443115263,0.039199,102170.0,102160.0,0.039202]
[1737443115448,0.039199,102170.0,102160.0,0.07350818]
[1737443115652,0.039199,102170.0,102160.0,0.17138426]
[1737443116261,0.039199,102170.0,102160.0,0.13218226]
[1737443116561,0.399999,102170.0,102160.0,0.03430618]
[1737443116755,0.039199,102170.0,102160.0,0.03430618]
[1737443117060,0.399999,102170.0,102160.0,0.03430618]
[1737443117251,0.50028783,102170.0,102160.0,0.03430618]
[1737443117453,0.039203,102160.0,102150.0,0.6480821]
[1737443117658,0.039203,102160.0,102150.0,0.68239154]
[1737443117852,0.039203,102160.0,102150.0,0.78027241]
[1737443118456,0.039203,102160.0,102150.0,0.68239154]
[1737443118662,0.400003,102160.0,102150.0,0.32159154]
[1737443118856,0.3608,102170.0,102150.0,0.419482]
[1737443119063,0.0392,102170.0,102160.0,0.039203]
[1737443119563,0.039203,102160.0,102150.0,0.6480821]
[1737443119762,0.039203,102160.0,102150.0,0.68238953]
[1737443120559,0.039203,102160.0,102150.0,0.32158953]
[1737443120757,0.400003,102160.0,102150.0,0.04947907]
[1737443120958,0.122303,102160.0,102150.0,0.04947907]
[1737443121258,0.483103,102160.0,102150.0,0.04947907]
[1737443122263,0.58339183,102160.0,102150.0,0.03430743]
[1737443122469,0.039206,102150.0,102140.0,0.23290446]
[1737443122759,0.400006,102150.0,102140.0,0.26722003]
[1737443123158,0.400006,102150.0,102140.0,0.23290446]
[1737443123962,0.400006,102150.0,102140.0,0.16490445]
[1737443125060,0.50029483,102150.0,102140.0,0.16490445]
[1737443125651,0.50029483,102150.0,102140.0,1e-08]
[1737443126260,0.400006,102150.0,102140.0,1e-08]
[1737443126564,0.11726092,102160.0,102150.0,0.039206]
[1737443126860,0.11726092,102160.0,102150.0,0.50029483]
[1737443127259,0.08475648,102160.0,102150.0,0.63250953]
[1737443127457,0.17427678,102170.0,102160.0,0.039203]
[1737443127659,0.17427678,102170.0,102160.0,0.61980649]
[1737443127860,0.17427678,102170.0,102160.0,0.51951766]
[1737443128069,0.00146878,102180.0,102160.0,0.48031466]
[1737443128258,0.04066378,102180.0,102170.0,0.039199]
[1737443128969,0.04066378,102180.0,102170.0,0.13707029]
[1737443129464,0.00146878,102180.0,102170.0,0.13707029]
[1737443129663,0.00146878,102180.0,102170.0,0.59815912]
[1737443129961,0.00146878,102180.0,102170.0,0.61187304]
[1737443130667,1.15380336,102190.0,102170.0,0.79346187]
[1737443130868,1.15380336,102190.0,102170.0,0.69317304]
[1737443131762,0.399992,102190.0,102170.0,0.69317304]
[1737443132664,0.46108883,102180.0,102150.0,0.926765]
[1737443132856,0.13949183,102160.0,102150.0,0.03430677]
[1737443133062,0.039203,102160.0,102140.0,1.0049019]
[1737443133262,0.400003,102160.0,102140.0,1.0392109]
[1737443133463,0.400003,102160.0,102140.0,1.13707741]
[1737443133664,0.039203,102160.0,102140.0,1.13707741]
[1737443133966,0.0392,102170.0,102160.0,0.039203]
[1737443134166,0.0392,102170.0,102150.0,0.039206]
[1737443134372,0.4,102170.0,102150.0,0.07351541]
[1737443134566,0.039203,102160.0,102150.0,0.17141066]
[1737443135158,0.039203,102160.0,102150.0,0.13220466]
[1737443135365,0.400003,102160.0,102150.0,0.03431049]
[1737443135569,0.400003,102160.0,102150.0,0.07351649]
[1737443136165,0.50029183,102160.0,102150.0,0.03431049]
[1737443136474,0.50029183,102160.0,102130.0,7.369e-05]
[1737443136475,0.03921,102140.0,102130.0,7.369e-05]
[1737443136676,0.03921,102140.0,102130.0,0.03928769]
[1737443136871,0.481007,102150.0,102130.0,0.13717815]
[1737443137265,0.03921,102140.0,102130.0,7.369e-05]
[1737443137470,0.40001,102140.0,102130.0,7.369e-05]
[1737443137874,0.40001,102140.0,102130.0,0.03928769]
[1737443138068,0.03921,102140.0,102130.0,0.03928769]
[1737443138270,0.6059,102150.0,102130.0,0.03928769]
[1737443138271,0.645107,102150.0,102130.0,0.13719731]
[1737443138564,0.03921,102140.0,102130.0,0.13719731]
[1737443139174,0.400007,102150.0,102130.0,0.13719731]
[1737443139776,0.54641687,102150.0,102130.0,0.13719731]
[1737443140366,0.6467057,102150.0,102130.0,0.13719731]
[1737443140578,0.40001,102140.0,102130.0,7.369e-05]
[1737443140765,0.54641687,102150.0,102130.0,0.09797852]
[1737443141076,0.54641687,102150.0,102140.0,0.03921]
[1737443141478,0.18561687,102150.0,102140.0,0.03921]
[1737443141679,0.14640987,102150.0,102140.0,0.03921]
[1737443141877,0.14640987,102150.0,102140.0,0.59820845]
[1737443142077,0.14640987,102150.0,102140.0,0.84830845]
[1737443142374,0.17565454,102160.0,102150.0,0.039206]
[1737443142568,0.17565454,102160.0,102150.0,0.50029483]
[1737443142975,0.04175454,102160.0,102150.0,0.64107008]
[1737443143273,0.4608,102200.0,102190.0,0.039191]
[1737443143470,0.1,102200.0,102190.0,0.50027983]
[1737443143878,0.1,102200.0,102190.0,0.49788146]
[1737443144677,0.1,102200.0,102190.0,0.59817029]
[1737443145171,0.097,102200.0,102190.0,0.59817029]
[1737443145772,0.20332291,102220.0,102190.0,0.49788146]
[1737443145980,0.20332291,102220.0,102210.0,0.039183]
[1737443146671,0.20332291,102220.0,102210.0,0.13703514]
[1737443147982,0.24250291,102220.0,102210.0,0.039183]
[1737443148983,0.03918,102220.0,102210.0,0.039183]
[1737443151877,0.399976,102230.0,102210.0,0.039183]
[1737443152682,0.566573,102240.0,102220.0,0.039178]
[1737443153883,0.66686183,102240.0,102220.0,0.039178]
[1737443154688,0.566573,102240.0,102220.0,0.039178]
[1737443154881,0.13946483,102230.0,102200.0,0.3608]
[1737443155182,0.399981,102220.0,102200.0,0.399986]
[1737443155479,0.399981,102220.0,102210.0,0.039183]
[1737443155684,0.3608,102220.0,102210.0,0.039183]
[1737443155981,0.8308,102220.0,102210.0,0.039183]
[1737443156284,0.3608,102220.0,102210.0,0.039183]
[1737443156480,0.39998,102220.0,102210.0,0.039183]
[1737443156676,0.3608,102220.0,102210.0,0.039183]
[1737443156882,0.566573,102240.0,102220.0,0.039177]
[1737443157277,0.3608,102230.0,102220.0,0.039177]
[1737443157774,0.46108883,102230.0,102170.0,0.63434778]
[1737443158081,0.50028083,102190.0,102180.0,0.039195]
[1737443158278,0.399992,102190.0,102180.0,0.039195]
[1737443158678,0.399992,102190.0,102180.0,0.13701842]
[1737443158887,0.399992,102190.0,102170.0,0.36674778]
[1737443158888,0.50028083,102190.0,102170.0,0.36674778]
[1737443159077,0.50028383,102180.0,102170.0,0.36674778]
[1737443159678,0.50028383,102180.0,102170.0,0.29037407]
[1737443160483,0.039206,102150.0,102140.0,0.44655026]
[1737443160676,0.760806,102150.0,102140.0,0.42135475]
[1737443160882,0.86109483,102150.0,102140.0,0.40734026]
[1737443161684,0.760806,102150.0,102140.0,0.5444503]
[1737443162215,0.86109483,102150.0,102140.0,0.5444503]
[1737443162592,0.760806,102150.0,102140.0,0.5444503]
[1737443163095,0.7216,102150.0,102140.0,0.5444503]
[1737443163694,0.3608,102160.0,102140.0,0.5444503]
[1737443163878,0.3608,102170.0,102160.0,0.039203]
[1737443164087,0.50028783,102170.0,102160.0,0.039203]
[1737443164588,0.50028783,102170.0,102160.0,0.13710304]
[1737443165092,0.399999,102170.0,102160.0,0.13710304]
[1737443165388,0.50028783,102170.0,102160.0,0.13710304]
[1737443166688,0.399999,102170.0,102160.0,0.13710304]
[1737443166889,0.3608,102170.0,102160.0,0.13710304]
[1737443167090,0.50028783,102170.0,102140.0,0.1625]
[1737443167291,0.760806,102150.0,102140.0,0.03921]
[1737443167586,0.7216,102150.0,102140.0,0.13709087]
[1737443168703,0.03921,102140.0,102130.0,7.369e-05]
[1737443168995,0.039214,102130.0,102110.0,0.565741]
[1737443169194,0.400018,102120.0,102110.0,0.565741]
[1737443169698,0.400015,102130.0,102110.0,0.66364104]
[1737443170399,0.400018,102120.0,102110.0,0.66364104]
[1737443170886,0.400015,102130.0,102110.0,0.66364104]
[1737443171796,0.400015,102130.0,102110.0,0.67668288]
[1737443171797,0.3608,102120.0,102110.0,0.67668288]
[1737443172095,0.3608,102130.0,102120.0,0.039218]
[1737443172593,0.50030383,102130.0,102110.0,0.57878284]
[1737443172796,0.50030383,102130.0,102120.0,0.09792401]
[1737443172996,0.50030383,102130.0,102110.0,0.57878284]
[1737443173195,0.3608,102120.0,102110.0,0.57878284]
[1737443173401,0.3608,102120.0,102110.0,0.67670685]
[1737443173787,0.400015,102130.0,102110.0,0.67670685]
[1737443175290,0.400015,102130.0,102120.0,0.039218]
[1737443175696,0.400015,102130.0,102110.0,0.53956184]
[1737443175896,0.50030683,102120.0,102110.0,0.53956184]
[1737443176103,0.50030683,102120.0,102110.0,0.09792401]
[1737443176299,0.039222,102110.0,102100.0,0.1816]
[1737443176495,0.50031083,102110.0,102100.0,0.1816]
[1737443176697,0.400022,102110.0,102100.0,0.27952401]
[1737443176904,0.3608,102110.0,102100.0,0.33236447]
[1737443177894,0.3608,102120.0,102110.0,0.039222]
[1737443178290,0.3608,102120.0,102110.0,0.120722]
[1737443178599,0.400015,102130.0,102110.0,0.21866039]
[1737443178800,0.400015,102130.0,102120.0,0.039218]
[1737443179004,0.3608,102130.0,102120.0,0.039218]
[1737443179398,0.3608,102130.0,102120.0,0.13714201]
[1737443179999,0.36087369,102140.0,102120.0,0.13714201]
[1737443180000,0.36087369,102140.0,102130.0,0.039214]
[1737443180304,0.50037352,102140.0,102120.0,0.124217]
[1737443180512,0.3608,102130.0,102120.0,0.124217]
[1737443180697,0.3608,102130.0,102120.0,0.22213621]
[1737443182598,0.36087369,102140.0,102120.0,0.22213621]
[1737443182801,0.36087369,102140.0,102130.0,0.039214]
[1737443183401,0.36087369,102140.0,102130.0,0.13712842]
[1737443183798,7.369e-05,102140.0,102130.0,0.13712842]
[1737443184103,0.36087369,102140.0,102130.0,0.13712842]
[1737443184499,7.369e-05,102140.0,102130.0,0.23741725]
[1737443184716,7.369e-05,102140.0,102130.0,0.59821725]
[1737443185012,7.369e-05,102140.0,102130.0,0.89821725]
[1737443185013,1e-08,102140.0,102130.0,0.89821725]
[1737443185202,0.3608,102170.0,102160.0,0.039203]
[1737443185805,0.3608,102170.0,102160.0,0.13711262]
[1737443186005,0.44824784,102170.0,102160.0,0.13711262]
[1737443186606,0.58773567,102170.0,102160.0,0.09790962]
[1737443186910,0.039203,102160.0,102150.0,0.039206]
[1737443187103,0.400003,102160.0,102150.0,0.039206]
[1737443187706,0.039208,102150.0,102130.0,0.569692]
[1737443187916,0.400008,102150.0,102130.0,0.569692]
[1737443188118,0.50029683,102150.0,102140.0,0.09788087]
[1737443188312,0.03921,102140.0,102130.0,0.0036]
[1737443188515,0.50029883,102140.0,102130.0,0.0036]
[1737443189009,0.039214,102130.0,102110.0,0.12240543]
[1737443189203,0.3608,102130.0,102120.0,0.13950683]
[1737443189406,0.3608,102130.0,102120.0,0.039218]
[1737443189807,0.3608,102140.0,102130.0,0.039214]
[1737443190308,0.400007,102150.0,102130.0,0.039214]
[1737443190612,0.3608,102140.0,102130.0,0.23742204]
[1737443190916,0.400006,102150.0,102140.0,0.03921]
[1737443191310,0.3608,102150.0,102140.0,0.03921]
[1737443191511,0.3608,102150.0,102140.0,0.13711962]
[1737443192018,0.400006,102150.0,102140.0,0.13711962]
[1737443193312,0.400006,102150.0,102140.0,0.09790962]
[1737443193313,0.58774267,102150.0,102140.0,0.09790962]
[1737443193516,0.03921,102140.0,102120.0,0.27194503]
[1737443193719,0.3608,102130.0,102120.0,0.27194503]
[1737443194013,0.3608,102140.0,102130.0,0.039214]
[1737443194611,0.3608,102140.0,102130.0,0.22163321]
[1737443195308,0.44824784,102150.0,102140.0,0.03921]
[1737443195906,0.08744784,102150.0,102140.0,0.13711962]
[1737443196119,0.08744784,102150.0,102140.0,0.59820845]
[1737443196315,0.05705011,102150.0,102140.0,0.64644092]
[1737443196524,0.11701316,102160.0,102150.0,0.039206]
[1737443196817,0.11701316,102160.0,102150.0,0.44823847]
[1737443197019,0.11701316,102160.0,102150.0,0.53343847]
[1737443197211,0.14549488,102160.0,102150.0,0.63132893]
[1737443197610,0.14549488,102160.0,102150.0,0.73161776]
[1737443197806,0.14549488,102160.0,102150.0,0.63132893]
[1737443198220,0.14549488,102160.0,102150.0,0.58309646]
[1737443199218,0.14549488,102160.0,102150.0,0.68338529]
[1737443199737,0.14549488,102160.0,102150.0,0.58309646]
[1737443200622,0.14549488,102160.0,102150.0,0.68338529]
[1737443200927,0.3608,102170.0,102160.0,0.039203]
[1737443201524,0.3608,102170.0,102160.0,0.13709346]
[1737443205714,0.3608,102170.0,102160.0,0.039203]
[1737443206122,0.3608,102170.0,102160.0,0.13708387]
[1737443208130,0.3608,102190.0,102170.0,0.039199]
[1737443208335,0.3608,102190.0,102180.0,0.039195]
[1737443208623,0.399992,102190.0,102170.0,0.039197]
[1737443208820,0.3608,102180.0,102170.0,0.039197]
[1737443209018,0.3608,102180.0,102170.0,0.13707787]
[1737443209221,0.399995,102180.0,102170.0,0.13707787]
[1737443209625,0.50028383,102180.0,102160.0,0.03929903]
[1737443209819,0.3608,102170.0,102160.0,0.03929903]
[1737443210021,0.3608,102170.0,102160.0,0.13716554]
[1737443210318,0.399999,102170.0,102160.0,0.13716554]
[1737443210522,0.488699,102170.0,102160.0,0.13716554]
[1737443210715,0.58898783,102170.0,102160.0,9.703e-05]
[1737443211719,0.488699,102170.0,102160.0,9.703e-05]
[1737443211921,0.58898783,102170.0,102160.0,9.703e-05]
[1737443212622,0.488699,102170.0,102160.0,9.703e-05]
[1737443212817,0.58898783,102170.0,102160.0,9.703e-05]
[1737443213724,0.55571347,102170.0,102160.0,9.703e-05]
[1737443213934,0.039203,102160.0,102130.0,0.59223063]
[1737443214135,0.46702647,102140.0,102130.0,0.32961008]
[1737443214326,0.46702647,102140.0,102130.0,0.30353363]
[1737443214523,0.55522647,102140.0,102130.0,0.29039708]
[1737443214741,0.55522647,102140.0,102120.0,0.34847649]
[1737443214927,0.4671255,102130.0,102120.0,0.34847649]
[1737443215132,0.039218,102120.0,102110.0,0.40655591]
[1737443215331,0.53404694,102120.0,102110.0,0.40655591]
[1737443215535,0.53404694,102120.0,102110.0,0.30515591]